[Event "German-ch Women 2024"]
[Site "Ostfildern"]
[Date "2024.08.25"]
[Round "9.4"]
[White "Just, Anita"]
[Black "Staerk, Elisa"]
[Result "0-1"]
[ECO "B92"]
[WhiteElo "1871"]
[BlackElo "2002"]
[Annotator "RC"]
[PlyCount "154"]
[EventDate "2024.08.16"]
[EventType "tourn"]
[EventCountry "GER"]
[SourceTitle "playchess.com"]
[Source "ChessBase"]
[SourceQuality "1"]
[TimeControl "40/5400+30:1800+30"]

1. e4 {[%emt 0:00:02]} c5 {[%emt 0:00:03]} 2. Nf3 {[%emt 0:00:06]} d6 {[%emt 0:00:04]} 3. d4 {[%emt 0:00:06]} cxd4 {[%emt 0:00:03]} 4. Nxd4 {[%emt 0:00:05]} Nf6 {[%emt 0:00:03]} 5. Nc3 {[%emt 0:00:07]} a6 {[%emt 0:00:04]} 6. Be2 {[%emt 0:00:17]} e5 {[%emt 0:00:05]} 7. Nb3 {[%emt 0:00:04]} Be7 {[%emt 0:00:05]} 8. O-O {[%emt 0:00:05]} O-O {[%emt 0:00:07]} 9. f4 {[%emt 0:00:11]} b5 {[%emt 0:00:11]} 10. Nd5 {[%emt 0:00:53]} Nxd5 {[%emt 0:02:58]} 11. exd5 {[%emt 0:00:32]} Nd7 {[%emt 0:01:23]} 12. a4 {[%emt 0:05:54]} b4 {[%emt 0:02:29]} 13. a5 {[%emt 0:00:56]} Bb7 {[%emt 0:01:19]} 14. Qd3 {[%emt 0:14:18]} Qc7 {[%emt 0:05:13]} 15. Be3 {[%emt 0:01:28]} exf4 {[%emt 0:03:36]} 16. Rxf4 {[%emt 0:05:12]} Ne5 {[%emt 0:02:59]} 17. Qd2 {[%emt 0:07:28]} Bg5 {[%emt 0:06:29]} 18. Rxb4 {[%emt 0:04:31]} Bxe3+ {[%emt 0:00:21]} 19. Qxe3 {[%emt 0:00:05]} Bxd5 {[%emt 0:00:53]} 20. Nd4 {[%emt 0:11:26]} Rfe8 {[%emt 0:16:34]} 21. Qf2 {[%emt 0:10:20]} Qc5 {[%emt 0:09:18]} 22. c3 {[%emt 0:03:41]} f6 {[%emt 0:14:50]} 23. Rb6 {[%emt 0:13:06]} Nc4 {[%emt 0:03:11]} 24. b4 {[%emt 0:04:30]} Qc7 {[%emt 0:01:02]} 25. Qf5 {[%emt 0:07:28]} Ne3 {[%emt 0:02:45]} 26. Qd3 {[%emt 0:01:54]} Bc4 {[%emt 0:01:14]} 27. Qd2 {[%emt 0:01:36]} Bxe2 {[%emt 0:00:21]} 28. Qxe2 {[%emt 0:01:12]} Qxc3 {[%emt 0:00:37]} 29. Qa2+ {[%emt 0:01:08]} d5 {[%emt 0:01:17]} 30. Nf3 {[%emt 0:01:46]} Nc4 {[%emt 0:01:30]} 31. Rb7 {[%emt 0:01:15]} Re4 {[%emt 0:03:36]} 32. Rd1 {[%emt 0:00:53]} Rae8 {[%emt 0:01:13]} 33. Qa1 {[%emt 0:00:39]} Qe3+ {[%emt 0:01:50]} 34. Kh1 {[%emt 0:00:05]} Ne5 {[%emt 0:02:10]} 35. Re1 {[%emt 0:01:55]} Qf4 {[%emt 0:03:48]} 36. Rxe4 {[%emt 0:00:36]} Qxe4 {[%emt 0:00:17]} 37. Nxe5 {[%emt 0:00:53]} Rxe5 {[%emt 0:01:01]} 38. h3 {[%emt 0:01:04]} Qf4 {[%emt 0:01:40]} 39. Rb8+ {[%emt 0:00:23]} Kf7 {[%emt 0:00:05]} 40. Rb7+ {[%emt 0:00:03]} Kg6 {[%emt 0:00:32]} 41. Qb1+ {[%emt 0:04:21]} Kh6 {[%emt 0:00:44]} 42. Rc7 {[%emt 0:05:32]} Re4 {[%emt 0:00:53]} 43. Qc1 {[%emt 0:01:50]} Qxc1+ {[%emt 0:00:07]} 44. Rxc1 {[%emt 0:00:04]} Rxb4 {[%emt 0:00:04]} 45. Rc6 {[%emt 0:00:45]} Kg5 {[%emt 0:01:39]} 46. Kg1 {[%emt 0:02:37]} Kf4 {[%emt 0:00:56]} 47. Kf1 {[%emt 0:00:51]} d4 {[%emt 0:00:53]} 48. Rxa6 {[%emt 0:01:41]} Ke3 {[%emt 0:00:36]} 49. Re6+ {[%emt 0:01:19]} Kd2 {[%emt 0:00:11]} 50. a6 {[%emt 0:03:26]} Ra4 {[%emt 0:00:05]} 51. Rc6 {[%emt 0:01:05]} d3 {[%emt 0:00:11]} 52. Kf2 {[%emt 0:00:18]} Rf4+ {[%emt 0:00:33]} 53. Kg3 {[%emt 0:00:37]} Ra4 {[%emt 0:00:21]} 54. Kf2 {[%emt 0:00:06]} Kd1 {[%emt 0:00:19]} 55. Ke3 {[%emt 0:01:38]} d2 {[%emt 0:00:10]} 56. Kf2 {[%emt 0:01:46]} Rf4+ {[%emt 0:00:26]} 57. Ke3 {[%emt 0:03:49]} Ra4 {[%emt 0:00:06]} 58. Kf2 {[%emt 0:00:04]} Ra5 {[%emt 0:00:08]} 59. g4 {[%emt 0:01:58]} Ra3 {[%emt 0:00:18]} 60. h4 {[%emt 0:01:16]} Ra4 {[%emt 0:00:05]} 61. Kf3 {[%emt 0:01:01]} Ke1 {[%emt 0:00:49]} 62. Re6+ {[%emt 0:00:04]} Kf1 {[%emt 0:00:18]} 63. Rd6 {[%emt 0:00:22]} Ra3+ {[%emt 0:00:05]} 64. Kf4 {[%emt 0:00:40]} Ke2 {[%emt 0:00:04]} 65. Re6+ {[%emt 0:00:09]} Kf2 {[%emt 0:00:05]} 66. Rd6 {[%emt 0:00:17]} Ra4+ {[%emt 0:00:07]} 67. Kf5 {[%emt 0:00:11]} Ke2 {[%emt 0:00:25]} 68. Re6+ {[%emt 0:00:18]} Kd3 {[%emt 0:00:40]} 69. Rd6+ {[%emt 0:00:25]} Rd4 {[%emt 0:00:32]} 70. Rxd4+ {[%emt 0:02:45]} Kxd4 {[%emt 0:00:01]} 71. a7 {[%emt 0:06:32]} d1=Q {[%emt 0:00:04]} 72. a8=Q {[%emt 0:00:00]} Qd3+ {[%emt 0:00:22]} 73. Ke6 {[%emt 0:00:00]} Qe4+ {[%emt 0:00:22]} 74. Qxe4+ {[%emt 0:00:00]} Kxe4 {[%emt 0:00:03]} 75. h5 {[%emt 0:00:00]} Kf4 {[%emt 0:00:24]} 76. h6 {[%emt 0:00:00]} gxh6 {[%emt 0:00:06]} 77. Kxf6 {[%emt 0:00:00]} Kxg4 {[%emt 0:00:04]} 0-1

[Event "German-ch Women 2024"]
[Site "Ostfildern"]
[Date "2024.08.25"]
[Round "9.5"]
[White "Wartenberg, Alissa"]
[Black "Novikova, Margarita"]
[Result "0-1"]
[ECO "B06"]
[WhiteElo "1858"]
[BlackElo "1991"]
[Annotator "RC"]
[PlyCount "54"]
[EventDate "2024.08.16"]
[EventType "tourn"]
[EventCountry "GER"]
[SourceTitle "playchess.com"]
[Source "ChessBase"]
[SourceQuality "1"]
[TimeControl "40/5400+30:1800+30"]

1. e4 {[%emt 0:00:02]} g6 {[%emt 0:03:12]} 2. d4 {[%emt 0:00:07]} Bg7 {[%emt 0:00:04]} 3. Nc3 {[%emt 0:00:08]} e6 {[%emt 0:00:27]} 4. Nf3 {[%emt 0:00:42]} d6 {[%emt 0:00:12]} 5. Be2 {[%emt 0:00:36]} Ne7 {[%emt 0:00:39]} 6. O-O {[%emt 0:00:49]} Nd7 {[%emt 0:00:21]} 7. Be3 {[%emt 0:08:16]} b6 {[%emt 0:01:41]} 8. Qd2 {[%emt 0:02:38]} h6 {[%emt 0:00:19]} 9. Rad1 {[%emt 0:03:12]} d5 {[%emt 0:06:23]} 10. e5 {[%emt 0:06:29]} a6 {[%emt 0:02:29]} 11. a4 {[%emt 0:00:26]} c5 {[%emt 0:00:21]} 12. Na2 {[%emt 0:04:06]} cxd4 {[%emt 0:00:43]} 13. Bxd4 {[%emt 0:00:59]} Nc6 {[%emt 0:00:37]} 14. Qc3 {[%emt 0:12:07]} Nxd4 {[%emt 0:06:50]} 15. Qxd4 {[%emt 0:00:09]} Qc7 {[%emt 0:01:14]} 16. Rfe1 {[%emt 0:21:40]} Nxe5 {[%emt 0:07:00]} 17. Nxe5 {[%emt 0:01:38]} Bxe5 {[%emt 0:00:05]} 18. Bb5+ {[%emt 0:02:27]} axb5 {[%emt 0:00:06]} 19. Rxe5 {[%emt 0:00:07]} O-O {[%emt 0:01:09]} 20. Nc3 {[%emt 0:01:03]} b4 {[%emt 0:03:05]} 21. Ne2 {[%emt 0:14:05]} Rxa4 {[%emt 0:01:26]} 22. b3 {[%emt 0:01:22]} Ra2 {[%emt 0:00:15]} 23. Re3 {[%emt 0:00:40]} Rxc2 {[%emt 0:03:52]} 24. Rh3 {[%emt 0:02:40]} e5 {[%emt 0:00:56]} 25. Qe3 {[%emt 0:02:04]} Bxh3 {[%emt 0:04:15]} 26. gxh3 {[%emt 0:00:05]} d4 {[%emt 0:04:06]} 27. Qf3 {[%emt 0:03:28]} Qc6 {[%emt 0:01:53]} 0-1

[Event "German-ch Women 2024"]
[Site "Ostfildern"]
[Date "2024.08.25"]
[Round "9.6"]
[White "Mader, Lena"]
[Black "Bursan, Ana-Maria"]
[Result "1-0"]
[ECO "A11"]
[WhiteElo "1876"]
[BlackElo "1719"]
[Annotator "NA RC"]
[PlyCount "145"]
[EventDate "2024.08.16"]
[EventType "tourn"]
[EventCountry "GER"]
[SourceTitle "playchess.com"]
[Source "ChessBase"]
[SourceQuality "1"]
[TimeControl "40/5400+30:1800+30"]

1. c4 {[%emt 0:00:01]} c6 {[%emt 0:00:06]} 2. g3 {[%emt 0:01:11]} d5 {[%emt 0:00:21]} 3. Bg2 {[%emt 0:00:06]} dxc4 {[%emt 0:00:41]} 4. Nf3 {[%emt 0:00:08]} Nf6 {[%emt 0:00:36]} 5. O-O {[%emt 0:00:08]} Nbd7 {[%emt 0:01:18]} 6. Na3 {[%emt 0:06:02] A11: English Opening: 1...c6.} Nb6 {[%emt 0:01:58]} 7. Ne5 {[%emt 0:01:54]} Qd4 {[%emt 0:04:53]} 8. Nf3 {[%emt 0:07:29]} Qd6 {[%emt 0:09:36]} 9. Qc2 {[%emt 0:04:57]} h5 {[%emt 0:11:47]} 10. Nxc4 {[%emt 0:04:18]} Nxc4 {[%emt 0:01:20]} 11. Qxc4 {[%emt 0:00:03]} Be6 {[%emt 0:01:55]} 12. Qa4 {[%emt 0:02:26]} Bd5 {[%emt 0:04:58]} 13. d3 {[%emt 0:00:45]} Bxf3 {[%emt 0:05:44]} 14. Bxf3 {[%emt 0:00:09]} e5 {[%emt 0:03:13]} 15. Be3 {[%emt 0:06:15]} Nd5 {[%emt 0:09:11]} (15... Be7 $14) 16. Bd2 {[%emt 0:02:02]} Be7 {[%emt 0:01:53]} 17. Rac1 {[%emt 0:02:28]} h4 {[%emt 0:02:58]} 18. Qg4 {[%emt 0:09:03]} Bf6 {[%emt 0:10:25]} 19. a3 {[%emt 0:04:24]} a5 {[%emt 0:04:32]} 20. Qc4 {[%emt 0:06:48]} Bd8 {[%emt 0:05:01]} 21. Qc5 {[%emt 0:07:44]} Qe6 {[%emt 0:02:47]} 22. Bg2 {[%emt 0:06:13]} hxg3 {[%emt 0:01:15]} 23. hxg3 {[%emt 0:00:07]} Qg4 {[%emt 0:03:55]} 24. Rfe1 {[%emt 0:03:14]} Bb6 {[%emt 0:01:20]} 25. Qd6 {[%emt 0:03:28]} Qxg3 {[%emt 0:02:07]} 26. e3 {[%emt 0:00:51]} Qh2+ {[%emt 0:00:51]} 27. Kf1 {[%emt 0:00:09]} Rd8 {[%emt 0:00:19]} 28. Rxc6 {[%emt 0:01:00]} Rxd6 {[%emt 0:01:18]} 29. Rxd6 {[%emt 0:00:01]} Bxe3 {[%emt 0:04:17]} 30. Rxd5 {[%emt 0:03:46]} Bxd2 {[%emt 0:04:02]} 31. Rexe5+ {[%emt 0:00:10]} Qxe5 {[%emt 0:00:17]} 32. Rxe5+ {[%emt 0:00:01]} Kd7 {[%emt 0:00:36]} 33. Bxb7 {[%emt 0:00:50]} Rb8 {[%emt 0:00:24]} 34. Re2 {[%emt 0:03:50]} Bc1 {[%emt 0:00:50]} 35. Rc2 {[%emt 0:05:46]} Bxb2 {[%emt 0:00:36]} 36. Rxb2 {[%emt 0:00:06]} Kc7 {[%emt 0:00:03]} 37. Rb5 {[%emt 0:01:28]} Rxb7 {[%emt 0:00:23]} 38. Rxa5 {[%emt 0:00:01]} Kc6 {[%emt 0:01:01]} 39. Ke2 {[%emt 0:00:35]} Rb2+ {[%emt 0:00:33]} 40. Ke3 {[%emt 0:00:11]} Rb7 {[%emt 0:00:23]} 41. d4 {[%emt 0:31:49]} Re7+ {[%emt 0:30:34]} 42. Kd3 {[%emt 0:00:13]} Re1 {[%emt 0:00:00]} 43. Ra7 {[%emt 0:00:00]} Ra1 {[%emt 0:00:00]} 44. Ke4 {[%emt 0:00:00]} Re1+ {[%emt 0:00:00]} 45. Kd3 {[%emt 0:00:00]} Rd1+ {[%emt 0:00:00]} 46. Ke3 {[%emt 0:00:00]} Re1+ {[%emt 0:00:00]} 47. Kd2 {[%emt 0:00:00]} Re4 {[%emt 0:00:00]} 48. Kd3 {[%emt 0:00:00]} Rf4 {[%emt 0:00:00]} 49. Ke3 {[%emt 0:00:00]} g5 {[%emt 0:00:00]} 50. Ra5 {[%emt 0:00:00]} f6 {[%emt 0:00:00]} 51. Rc5+ {[%emt 0:00:00]} Kb6 {[%emt 0:00:00]} 52. a4 {[%emt 0:00:00]} Rh4 {[%emt 0:00:12]} 53. Rf5 {[%emt 0:00:00]} Rh3+ {[%emt 0:01:26]} 54. Ke4 {[%emt 0:00:00]} Rh4+ {[%emt 0:00:22]} 55. Kd5 {[%emt 0:02:59]} Rh6 $18 {[%emt 0:01:32]} 56. Ke6 {[%emt 0:01:07]} Rh4 {[%emt 0:00:29]} 57. d5 {[%emt 0:07:04]} Rxa4 {[%emt 0:00:38]} 58. Kxf6 {[%emt 0:00:09]} Kc7 {[%emt 0:00:34]} 59. Kxg5 {[%emt 0:00:30]} Kd6 {[%emt 0:00:23]} 60. f4 {[%emt 0:00:54]} Ra8 {[%emt 0:00:40]} 61. Re5 {[%emt 0:01:18]} Rg8+ {[%emt 0:00:22]} 62. Kf5 {[%emt 0:00:13]} Rf8+ {[%emt 0:00:42]} 63. Ke4 {[%emt 0:00:01]} Rf6 {[%emt 0:00:37]} 64. f5 {[%emt 0:00:30]} Rf8 {[%emt 0:00:19]} 65. Re6+ {[%emt 0:00:07]} Kd7 {[%emt 0:00:22]} 66. Ke5 {[%emt 0:00:07]} Rf7 {[%emt 0:00:28]} 67. Ra6 {[%emt 0:00:15]} Re7+ {[%emt 0:00:20]} 68. Re6 {[%emt 0:00:22]} Rf7 {[%emt 0:00:08]} 69. f6 {[%emt 0:00:29]} Rh7 {[%emt 0:00:16]} 70. Rd6+ {[%emt 0:00:38]} Ke8 {[%emt 0:00:19]} 71. Ke6 {[%emt 0:00:24]} Re7+ {[%emt 0:00:19]} 72. Kf5 {[%emt 0:00:30]} Re1 {[%emt 0:01:04]} 73. Re6+ {[%emt 0:00:09]} 1-0

[Event "German-ch Women 2024"]
[Site "Ostfildern"]
[Date "2024.08.25"]
[Round "9.7"]
[White "Wagenschuetz, Evelyn"]
[Black "Foltin, Alica"]
[Result "1-0"]
[ECO "C41"]
[WhiteElo "2070"]
[BlackElo "1722"]
[Annotator "RC"]
[PlyCount "71"]
[EventDate "2024.08.16"]
[EventType "tourn"]
[EventCountry "GER"]
[SourceTitle "playchess.com"]
[Source "ChessBase"]
[SourceQuality "1"]
[TimeControl "40/5400+30:1800+30"]

1. e4 {[%emt 0:00:03]} d6 {[%emt 0:00:02]} 2. d4 {[%emt 0:00:04]} Nf6 {[%emt 0:00:05]} 3. Nc3 {[%emt 0:00:04]} Nbd7 {[%emt 0:00:04]} 4. Nf3 {[%emt 0:00:32]} e5 {[%emt 0:00:03]} 5. Bc4 {[%emt 0:00:22]} Be7 {[%emt 0:00:06]} 6. O-O {[%emt 0:00:29]} c6 {[%emt 0:00:13]} 7. a4 {[%emt 0:00:08]} Qc7 {[%emt 0:00:08]} 8. Ba2 {[%emt 0:01:42]} O-O {[%emt 0:00:11]} 9. Re1 {[%emt 0:01:22]} b6 {[%emt 0:00:57]} 10. Qe2 {[%emt 0:03:13]} h6 {[%emt 0:01:11]} 11. h3 {[%emt 0:00:30]} Re8 {[%emt 0:00:33]} 12. d5 {[%emt 0:01:40]} Nc5 {[%emt 0:03:48]} 13. b4 {[%emt 0:07:39]} Na6 {[%emt 0:00:33]} 14. b5 {[%emt 0:08:46]} cxb5 {[%emt 0:00:31]} 15. Nxb5 {[%emt 0:02:03]} Qb7 {[%emt 0:01:11]} 16. Ba3 {[%emt 0:04:18]} Nc5 {[%emt 0:03:08]} 17. Bxc5 {[%emt 0:02:01]} bxc5 {[%emt 0:00:14]} 18. Rab1 {[%emt 0:03:09]} Qd7 {[%emt 0:00:52]} 19. Bc4 {[%emt 0:01:47]} a6 {[%emt 0:01:18]} 20. Nc3 {[%emt 0:00:35]} Qc7 {[%emt 0:00:30]} 21. Rb3 {[%emt 0:02:09]} Qa5 {[%emt 0:01:34]} 22. Nd2 {[%emt 0:00:57]} Bd7 {[%emt 0:00:52]} 23. Reb1 {[%emt 0:00:24]} g6 {[%emt 0:02:57]} 24. Qe3 {[%emt 0:01:45]} Kg7 {[%emt 0:00:26]} 25. Be2 {[%emt 0:01:01]} Nh7 {[%emt 0:04:40]} 26. Nc4 {[%emt 0:04:58]} Qc7 {[%emt 0:01:34]} 27. Rb7 {[%emt 0:02:48]} Qc8 {[%emt 0:00:06]} 28. Qc1 {[%emt 0:13:50]} Bxh3 {[%emt 0:04:47]} 29. gxh3 {[%emt 0:03:08]} Qxh3 {[%emt 0:00:23]} 30. Qe3 {[%emt 0:00:17]} Qc8 {[%emt 0:02:36]} 31. Qg3 {[%emt 0:08:06]} Qd8 {[%emt 0:00:56]} 32. Nb6 {[%emt 0:02:04]} Bh4 {[%emt 0:00:33]} 33. Qg2 {[%emt 0:04:44]} Qf6 {[%emt 0:01:58]} 34. Nxa8 {[%emt 0:01:50]} Ng5 {[%emt 0:00:25]} 35. Nc7 {[%emt 0:01:40]} Bxf2+ {[%emt 0:01:42]} 36. Kh1 {[%emt 0:00:13]} 1-0

[Event "German-ch Women 2024"]
[Site "Ostfildern"]
[Date "2024.08.25"]
[Round "9.8"]
[White "Walker, Julia"]
[Black "Koeberl, Christiane"]
[Result "1-0"]
[ECO "C41"]
[WhiteElo "1836"]
[BlackElo "1745"]
[Annotator "NA RC"]
[PlyCount "99"]
[EventDate "2024.08.16"]
[EventType "tourn"]
[EventCountry "GER"]
[SourceTitle "playchess.com"]
[Source "ChessBase"]
[SourceQuality "1"]
[TimeControl "40/5400+30:1800+30"]

1. e4 {[%emt 0:00:03]} d6 {[%emt 0:00:07]} 2. d4 {[%emt 0:00:05]} Nf6 {[%emt 0:00:06]} 3. Nc3 {[%emt 0:00:04]} Nbd7 {[%emt 0:00:07]} 4. Nf3 {[%emt 0:00:08]} e5 {[%emt 0:00:19]} 5. a4 {[%emt 0:00:17]} c6 {[%emt 0:00:10]} 6. Bc4 {[%emt 0:00:21]} Be7 {[%emt 0:00:08]} 7. O-O {[%emt 0:01:26]} O-O {[%emt 0:00:18]} 8. Re1 {[%emt 0:00:33]} Re8 {[%emt 0:01:01]} 9. h3 {[%emt 0:00:33]} exd4 {[%emt 0:00:30]} 10. Qxd4 {[%emt 0:03:00]} h6 {[%emt 0:06:08]} 11. Bf4 {[%emt 0:13:15]} Nc5 {[%emt 0:07:54]} 12. Rad1 {[%emt 0:12:41]} Be6 {[%emt 0:05:13]} 13. b4 {[%emt 0:18:16]} Bxc4 {[%emt 0:13:13]} 14. Qxc4 $11 {[%emt 0:00:41]} Ne6 {[%emt 0:15:02]} 15. Bxd6 {[%emt 0:01:59]} Bxd6 {[%emt 0:03:17]} 16. e5 {[%emt 0:00:21]} Nd5 {[%emt 0:01:48]} 17. exd6 {[%emt 0:00:57]} Qxd6 {[%emt 0:02:48]} 18. Nxd5 {[%emt 0:01:18]} cxd5 {[%emt 0:00:03]} 19. Rxd5 {[%emt 0:01:08]} Qe7 {[%emt 0:01:33]} 20. Nd4 {[%emt 0:22:22]} Rac8 {[%emt 0:01:54]} 21. Qb5 {[%emt 0:06:25]} a6 {[%emt 0:08:27]} 22. Qb6 {[%emt 0:02:44]} Rc4 {[%emt 0:01:10]} 23. b5 {[%emt 0:04:32]} Qb4 {[%emt 0:02:17]} 24. Rd1 {[%emt 0:01:17]} axb5 {[%emt 0:02:11]} 25. Nxe6 {[%emt 0:05:37]} Rxe6 {[%emt 0:02:12]} 26. Rd8+ {[%emt 0:00:32]} Kh7 {[%emt 0:00:19]} 27. Qxb5 {[%emt 0:00:45]} Re1+ {[%emt 0:01:57]} 28. Rxe1 {[%emt 0:00:28]} Qxe1+ {[%emt 0:00:05]} 29. Kh2 {[%emt 0:00:08]} Qe4 {[%emt 0:01:32]} 30. Qb3 {[%emt 0:01:56]} Rxc2 {[%emt 0:02:38]} 31. Qxf7 {[%emt 0:01:13]} Qe5+ {[%emt 0:01:26]} 32. f4 {[%emt 0:00:26]} Qe4 {[%emt 0:00:42]} 33. Qg8+ {[%emt 0:00:23]} Kg6 {[%emt 0:03:03]} 34. Rd6+ {[%emt 0:00:26]} Kh5 {[%emt 0:00:27]} 35. Qd5+ {[%emt 0:00:51]} Qxd5 {[%emt 0:00:42]} 36. Rxd5+ {[%emt 0:00:04]} Kg6 {[%emt 0:00:16]} 37. Rb5 {[%emt 0:00:21]} Rc4 {[%emt 0:00:46]} 38. f5+ {[%emt 0:00:12]} Kf6 {[%emt 0:00:16]} 39. a5 {[%emt 0:00:07]} Ra4 {[%emt 0:00:18]} 40. g4 {[%emt 0:00:29]} Kg5 {[%emt 0:00:27]} 41. Rxb7 {[%emt 0:30:53]} Ra2+ {[%emt 0:34:41]} 42. Kg3 {[%emt 0:00:32]} Ra3+ {[%emt 0:00:07]} 43. Kg2 {[%emt 0:00:49]} Ra2+ {[%emt 0:00:12]} 44. Kf3 {[%emt 0:00:19]} Ra3+ {[%emt 0:00:10]} 45. Ke4 {[%emt 0:00:06]} Ra4+ {[%emt 0:00:59]} 46. Ke5 {[%emt 0:00:00]} Rxa5+ {[%emt 0:00:00]} 47. Ke6 {[%emt 0:00:00]} Ra6+ {[%emt 0:00:00]} 48. Kf7 {[%emt 0:00:00]} g6 {[%emt 0:00:00]} 49. h4+ {[%emt 0:00:00]} Kxh4 {[%emt 0:00:00]} 50. fxg6 {[%emt 0:00:00]} 1-0

[Event "German-ch Women 2024"]
[Site "Ostfildern"]
[Date "2024.08.25"]
[Round "9.9"]
[White "Moutaqi, Sandra"]
[Black "Albayrak, Aylin"]
[Result "1-0"]
[ECO "E92"]
[WhiteElo "1961"]
[BlackElo "1741"]
[Annotator "NA RC"]
[PlyCount "77"]
[EventDate "2024.08.16"]
[EventType "tourn"]
[EventCountry "GER"]
[SourceTitle "playchess.com"]
[Source "ChessBase"]
[SourceQuality "1"]
[TimeControl "40/5400+30:1800+30"]

1. d4 {[%emt 0:00:02]} Nf6 {[%emt 0:00:07]} 2. c4 {[%emt 0:00:07]} g6 {[%emt 0:00:06]} 3. Nc3 {[%emt 0:00:09]} Bg7 {[%emt 0:00:06]} 4. e4 {[%emt 0:00:10]} d6 {[%emt 0:00:04]} 5. Nf3 {[%emt 0:00:32]} O-O {[%emt 0:00:08]} 6. Be2 {[%emt 0:01:07]} e5 {[%emt 0:01:35]} 7. d5 {[%emt 0:00:49]} a5 {[%emt 0:00:17]} 8. O-O {[%emt 0:00:23]} Na6 {[%emt 0:00:40]} 9. Bg5 {[%emt 0:00:55]} h6 {[%emt 0:00:12]} 10. Bh4 {[%emt 0:00:28]} Qe8 {[%emt 0:00:51]} 11. Qc1 {[%emt 0:02:23] E92: King's Indian: Classical: 6 Be2 e5: 7 dxe5, 7 Be3 and Petrosian System without 7...Nbd7.} Nc5 {[%emt 0:01:16]} 12. Bxf6 {[%emt 0:01:11]} Bxf6 {[%emt 0:00:32]} 13. Qxh6 {[%emt 0:00:10]} Qe7 {[%emt 0:02:40]} 14. Qe3 {[%emt 0:05:19]} Kg7 {[%emt 0:03:27]} 15. Rfe1 {[%emt 0:07:34]} Rh8 {[%emt 0:01:34]} 16. Bf1 {[%emt 0:03:11]} Bg4 {[%emt 0:03:26]} 17. Ne2 {[%emt 0:10:58]} Rh6 {[%emt 0:03:34]} 18. h3 {[%emt 0:04:45]} Rah8 {[%emt 0:01:23]} 19. Ng3 {[%emt 0:00:42]} Bxf3 {[%emt 0:01:47]} 20. Qxf3 {[%emt 0:00:54]} Bg5 {[%emt 0:05:19]} 21. Qc3 {[%emt 0:03:32]} b6 {[%emt 0:03:13]} 22. Rad1 {[%emt 0:03:22]} Rh4 {[%emt 0:06:09]} 23. Qc2 $11 {[%emt 0:03:58]} R8h6 {[%emt 0:09:58]} 24. Nh1 {[%emt 0:03:58]} Nd7 {[%emt 0:09:40]} 25. g3 {[%emt 0:02:01]} R4h5 {[%emt 0:01:23]} 26. f3 {[%emt 0:04:59]} f5 {[%emt 0:04:27]} 27. exf5 {[%emt 0:02:01]} gxf5 {[%emt 0:00:27]} 28. g4 {[%emt 0:01:44]} fxg4 {[%emt 0:02:21]} 29. fxg4 {[%emt 0:00:11]} Rh4 {[%emt 0:05:14]} 30. Ng3 {[%emt 0:00:20]} Qf6 {[%emt 0:11:07]} 31. Nf5+ {[%emt 0:01:38]} Kh8 {[%emt 0:00:53]} 32. Nxh6 {[%emt 0:03:22]} Qxh6 {[%emt 0:03:55]} 33. Kf2 {[%emt 0:07:15]} Nf6 {[%emt 0:04:04]} 34. Qf5 {[%emt 0:02:52]} Nxg4+ {[%emt 0:05:14]} 35. hxg4 {[%emt 0:03:39]} Rh2+ {[%emt 0:00:47]} 36. Kf3 {[%emt 0:02:12]} Qh4 {[%emt 0:04:38]} 37. Qf8+ {[%emt 0:01:12]} Kh7 {[%emt 0:00:32]} 38. Bd3+ {[%emt 0:00:07]} e4+ {[%emt 0:00:14]} 39. Bxe4# {[%emt 0:00:09]} 1-0